fUSD/lending_fUSD_20260327
["ID","MTS","AMOUNT","RATE_DAILY","PERIOD"]
[418950380,1774625440114,-500.0,0.00041095,17]
[418950381,1774625440124,-500.0,0.00041095,17]
[418950382,1774625440134,-500.0,0.00041095,17]
[418950383,1774625440143,-500.0,0.00041095,17]
[418950384,1774625440152,-500.0,0.00041095,17]
[418950385,1774625440162,-500.0,0.00041095,17]
[418950386,1774625440171,-500.0,0.00041095,17]
[418950387,1774625440180,-500.0,0.00041095,17]
[418950388,1774625440190,-203.0,0.00041096,30]
[418950389,1774625440199,-202.0,0.00041096,30]
[418950390,1774625440208,-204.0,0.00041096,30]
[418950391,1774625440218,-2500.0,0.00041096,2]
[418950392,1774625440228,-356.69387292,0.00041238,4]
[418950393,1774625440237,-500.0,0.00041257,2]
[418950394,1774625440246,-3124.55149703,0.00041258,15]
[418950395,1774625440690,-1024.64,0.0004084,10]
[418950396,1774625440700,-9022.2051726,0.00041258,15]
[418950397,1774625440710,-11848.25017333,0.00041258,15]
[418950398,1774625440719,-500.0,0.00041369,17]
[418950399,1774625440728,-1039.6,0.00041369,2]
[418950400,1774625440738,-500.0,0.00041369,2]
[418950401,1774625440748,-154.32207232,0.00041369,17]
[418950402,1774625440757,-803.95,0.00041369,17]
[418950403,1774625440767,-500.0,0.00041369,17]
[418950404,1774625440776,-500.0,0.00041369,17]
[418950405,1774625440785,-500.0,0.00041369,17]
[418950406,1774625440795,-500.0,0.00041369,17]
[418950407,1774625440804,-500.0,0.00041369,17]
[418950408,1774625440813,-500.0,0.00041369,17]
[418950409,1774625440825,-500.0,0.00041369,17]
[418950410,1774625440835,-500.0,0.00041369,17]
[418950411,1774625440845,-500.0,0.00041369,17]
[418950412,1774625440855,-253.33278635,0.00041369,17]
[418950413,1774625440864,-500.0,0.00041369,17]
[418950414,1774625440874,-269.14882861,0.00041369,17]
[418950415,1774625440884,-500.0,0.00041369,7]
[418950416,1774625440894,-583.62,0.00041369,30]
[418950417,1774625440903,-221.67635368,0.00041369,17]
[418950418,1774625440913,-945.53,0.00041369,17]
[418950419,1774625440922,-500.0,0.00041369,17]
[418950420,1774625440931,-2180.11,0.00041369,2]
[418950421,1774625440940,-500.0,0.00041369,17]
[418950422,1774625440951,-500.0,0.00041369,17]
[418950423,1774625440960,-500.0,0.00041369,17]
[418950424,1774625440970,-500.0,0.00041369,17]
[418950425,1774625440980,-500.0,0.00041369,17]
[418950426,1774625440989,-723.41,0.00041369,17]
[418950427,1774625440998,-500.0,0.00041369,17]
[418950428,1774625441007,-500.0,0.00041369,17]
[418950429,1774625441017,-602.59,0.00041369,17]
[418950430,1774625441026,-500.0,0.00041369,17]
[418950431,1774625441036,-500.0,0.00041369,17]
[418950432,1774625441045,-1295.23,0.00041369,17]
[418950433,1774625441055,-500.0,0.00041369,17]
[418950434,1774625441065,-1478.49,0.00041369,17]
[418950435,1774625441078,-500.0,0.00041369,17]
[418950436,1774625441088,-500.0,0.00041369,17]
[418950437,1774625441099,-500.0,0.00041369,17]
[418950438,1774625441109,-500.0,0.00041369,17]
[418950439,1774625441118,-500.0,0.00041369,17]
[418950440,1774625441128,-500.0,0.00041369,17]
[418950441,1774625441137,-500.0,0.00041369,17]
[418950442,1774625441147,-500.0,0.00041369,17]
[418950443,1774625441157,-458.01532961,0.00041369,17]
[418950444,1774625441167,-2017.32882214,0.00041542,28]
[418950445,1774625441177,-615.3292736,0.00041561,2]
[418950446,1774625441186,-500.0,0.00041621,10]
[418950447,1774625441196,-501.41443417,0.00041621,2]
[418950448,1774625441206,-356.69387292,0.00041622,4]
[418950449,1774625441216,-500.0,0.00041643,17]
[418950450,1774625441225,-1039.6,0.00041643,2]
[418950451,1774625441235,-498.41,0.00041643,2]
[418950452,1774625441245,-803.95,0.00041643,17]
[418950453,1774625441254,-500.0,0.00041643,17]
[418950454,1774625441264,-500.0,0.00041643,17]
[418950455,1774625441274,-500.0,0.00041643,17]
[418950456,1774625441284,-340.76922346,0.00041643,17]
[418950457,1774625441294,-500.0,0.00041643,17]
[418950458,1774625441304,-500.0,0.00041643,17]
[418950459,1774625441313,-500.0,0.00041643,17]
[418950460,1774625441324,-500.0,0.00041643,17]
[418950461,1774625441334,-500.0,0.00041643,17]
[418950462,1774625441343,-500.0,0.00041643,7]
[418950463,1774625441353,-583.62,0.00041643,30]
[418950464,1774625441363,-945.53,0.00041643,17]
[418950465,1774625441373,-500.0,0.00041643,17]
[418950466,1774625441383,-2180.11,0.00041643,2]
[418950467,1774625441392,-500.0,0.00041643,17]
[418950468,1774625441402,-500.0,0.00041643,17]
[418950469,1774625441412,-500.0,0.00041643,17]
[418950470,1774625441421,-255.1116478,0.00041643,17]
[418950471,1774625441431,-500.0,0.00041643,17]
[418950472,1774625441441,-723.41,0.00041643,17]
[418950473,1774625441450,-500.0,0.00041643,17]
[418950474,1774625441459,-500.0,0.00041643,17]
[418950475,1774625441469,-602.59,0.00041643,17]
[418950476,1774625441479,-591.54084296,0.00041643,17]
[418950477,1774625441488,-515.45018814,0.00041643,17]
[418950478,1774625441498,-1295.23,0.00041643,17]
[418950479,1774625441507,-500.0,0.00041643,17]
[418950480,1774625441517,-1478.49,0.00041643,17]
[418950481,1774625441527,-500.0,0.00041643,17]
[418950482,1774625441536,-151.0,0.00041643,120]
[418950483,1774625441545,-151.0,0.00041643,120]
[418950484,1774625441555,-500.0,0.00041643,17]
[418950485,1774625441566,-500.0,0.00041643,17]
[418950486,1774625441577,-500.0,0.00041643,17]
[418950487,1774625441586,-500.0,0.00041643,17]
[418950488,1774625441595,-500.0,0.00041643,17]
[418950489,1774625441605,-200.0,0.00041643,17]
[418950491,1774625441614,-500.0,0.00041643,17]
[418950492,1774625441623,-250.0,0.00041671,91]
[418950493,1774625441633,-356.69387292,0.00041755,4]
[418950494,1774625441643,-171.972079,0.00041765,120]
[418950495,1774625441652,-151.0,0.00041765,120]
[418950496,1774625441662,-151.0,0.00041765,7]
[418950497,1774625441672,-151.0,0.00041765,7]
[418950498,1774625441682,-151.0,0.00041765,7]
[418950500,1774625441692,-12146.75666963,0.00041766,15]
[418950502,1774625441702,-11848.25017333,0.00041766,15]
[418950504,1774625441711,-200.0,0.00041795,120]
[418950506,1774625441721,-568.35,0.00041795,30]
[418950508,1774625441730,-574.64,0.00041795,30]
[418950510,1774625441740,-151.0,0.00041796,30]
[418950511,1774625441750,-587.0382806,0.000418,90]
[418950512,1774625441759,-5000.0,0.00041868,120]
[418950513,1774625441769,-162.74120238,0.00041888,5]
[418950514,1774625441778,-219.88270067,0.00041888,18]
[418950515,1774625441788,-369.46,0.00041907,2]
[418950516,1774625441798,-500.0,0.00041917,17]
[418950517,1774625441808,-1039.6,0.00041917,2]
[418950518,1774625441817,-500.0,0.00041917,17]
[418950519,1774625441827,-803.95,0.00041917,17]
[418950520,1774625441837,-500.0,0.00041917,17]
[418950521,1774625441847,-258.41673873,0.00041917,17]
[418950522,1774625441856,-500.0,0.00041917,17]
[418950523,1774625441867,-500.0,0.00041917,17]
[418950524,1774625441876,-500.0,0.00041917,17]
[418950525,1774625441887,-500.0,0.00041917,17]
[418950526,1774625441897,-645.79507114,0.00041917,17]
[418950527,1774625441907,-500.0,0.00041917,7]
[418950528,1774625441915,-583.62,0.00041917,30]
[418950529,1774625441925,-945.53,0.00041917,17]
[418950530,1774625441935,-500.0,0.00041917,17]
[418950531,1774625442078,-2180.11,0.00041917,2]
[418950532,1774625442088,-500.0,0.00041917,17]
[418950533,1774625442098,-202.65,0.00041917,17]
[418950534,1774625442107,-500.0,0.00041917,17]
[418950535,1774625442117,-500.0,0.00041917,17]
[418950536,1774625442126,-723.41,0.00041917,17]
[418950537,1774625442136,-500.0,0.00041917,17]
[418950538,1774625442145,-500.0,0.00041917,17]
[418950539,1774625442154,-602.59,0.00041917,17]
[418950540,1774625442164,-1295.23,0.00041917,17]
[418950541,1774625442174,-500.0,0.00041917,17]
[418950542,1774625442184,-1478.49,0.00041917,17]
[418950543,1774625442193,-500.0,0.00041917,17]
[418950544,1774625442203,-500.0,0.00041917,17]
[418950545,1774625442212,-500.0,0.00041917,17]
[418950546,1774625442222,-151.0,0.00041917,120]
[418950547,1774625442231,-500.0,0.00041917,17]
[418950548,1774625442241,-201.09643105,0.00041917,17]
[418950549,1774625442250,-500.0,0.00041917,17]
[418950550,1774625442260,-500.0,0.00041917,17]
[418950551,1774625442269,-356.69387292,0.00041948,4]
[418950552,1774625442279,-1433.8379126,0.00041948,31]
[418950553,1774625442289,-356.69387292,0.00041958,4]
[418950554,1774625442299,-500.0,0.00041967,2]
[418950555,1774625442308,-713.38774584,0.00041968,4]
[418950556,1774625442317,-151.0,0.00041968,14]
[418950557,1774625442327,-151.0,0.00041968,120]
[418950558,1774625442337,-151.0,0.00041968,120]
[418950559,1774625442346,-151.0,0.00041968,120]
[418950560,1774625442356,-356.69387292,0.0004197,4]
[418950561,1774625442366,-500.0,0.00041973,10]
[418950562,1774625442375,-348.0,0.00041978,7]
[418950563,1774625442385,-2199.86,0.00041978,2]
[418950564,1774625442394,-151.0,0.00041978,120]
[418950565,1774625442404,-151.0,0.00041978,7]
[418950566,1774625442413,-151.0,0.00041978,7]
[418950567,1774625442423,-151.0,0.00041978,7]
[418950568,1774625442432,-500.0,0.00041987,2]
[418950569,1774625442442,-500.0,0.00041987,2]
[418950570,1774625442451,-2761.6523059,0.00041988,2]
[418950571,1774625442461,-116003.16581199,0.00041988,2]
[418950572,1774625442474,-1211.0,0.00041988,2]
[418950573,1774625442485,-369.0,0.00041988,2]
[418950574,1774625442504,-963.42602351,0.00041988,2]
[418950575,1774625442612,-441.0,0.00041258,60]
[418950576,1774625442621,-114.06689271,0.00041988,2]
[418950577,1774625442657,-412.0,0.00041988,2]
[418950578,1774625442668,-3966.55124645,0.00041988,2]
[418950579,1774625442679,-13390.316375,0.00041988,2]
[418950602,1774625443599,-659.3239025,0.00041988,2]
[418950603,1774625443700,-30515.63706378,0.00041988,2]
[418950604,1774625444093,-5713.32040939,0.00041988,2]
[418950626,1774625451871,-89.21680651,0.00039632,2]
[418950627,1774625451934,-744.64955229,0.00039632,2]
[418950628,1774625451944,-1816.76,0.00041095,2]
[418950629,1774625451955,-1816.76,0.00041369,2]
[418950630,1774625451965,-410.21951574,0.00041561,2]
[418950631,1774625451974,-1816.76,0.00041643,2]
[418950632,1774625451984,-1816.76,0.00041917,2]
[418950633,1774625451993,-853.87,0.00041978,10]
[418950634,1774625452003,-65767.11895835,0.00041988,2]
[418950635,1774625452014,-4353.77068786,0.00041988,2]
[418950636,1774625452249,-16639.46379929,0.00041988,2]
[418950637,1774625452273,-3309.75,0.00041988,2]
[418950639,1774625499723,-300.0,0.000162,7]
[418950640,1774625544739,-300.0,0.000162,7]
[418950644,1774625695375,500.0,8.5e-05,2]
[418950649,1774626102653,-255658.14026893,0.00046739,30]
[418950650,1774626102678,-500.0,0.00046739,120]
[418950651,1774626102708,-900.0,0.00046739,61]
[418950652,1774626102734,-900.0,0.00046739,61]
[418950653,1774626102759,-900.0,0.00046739,61]
[418950654,1774626102785,-900.0,0.00046739,61]
[418950655,1774626102810,-900.0,0.00046739,61]
[418950656,1774626102835,-900.0,0.00046739,61]
[418950657,1774626102860,-900.0,0.00046739,61]
[418950658,1774626102885,-900.0,0.00046739,61]
[418950659,1774626102911,-900.0,0.00046739,61]
[418950660,1774626102935,-900.0,0.00046739,61]
[418950661,1774626102959,-900.0,0.00046739,61]
[418950662,1774626102984,-900.0,0.00046739,61]
[418950663,1774626103009,-900.0,0.00046739,61]
[418950664,1774626103035,-900.0,0.00046739,61]
[418950665,1774626103062,-900.0,0.00046739,61]
[418950666,1774626103106,-900.0,0.00046739,61]
[418950667,1774626103132,-900.0,0.00046739,61]
[418950668,1774626103160,-900.0,0.00046739,61]
[418950669,1774626103187,-900.0,0.00046739,61]
[418950670,1774626103214,-900.0,0.00046739,61]
[418950671,1774626103241,-900.0,0.00046739,61]
[418950672,1774626103267,-900.0,0.00046739,61]
[418950673,1774626103294,-900.0,0.00046739,61]
[418950674,1774626103321,-900.0,0.00046739,61]
[418950675,1774626103348,-900.0,0.00046739,61]
[418950676,1774626103376,-900.0,0.00046739,61]
[418950677,1774626103402,-900.0,0.00046739,61]
[418950678,1774626103428,-900.0,0.00046739,61]
[418950679,1774626103454,-900.0,0.00046739,61]
[418950680,1774626103480,-900.0,0.00046739,61]
[418950681,1774626103506,-900.0,0.00046739,61]
[418950682,1774626103531,-900.0,0.00046739,61]
[418950683,1774626103558,-900.0,0.00046739,61]
[418950684,1774626103584,-900.0,0.00046739,61]
[418950685,1774626103611,-900.0,0.00046739,61]
[418950686,1774626103636,-991.33572758,0.00046739,61]
[418950687,1774626103662,-3000.0,0.00046739,120]
[418950688,1774626103688,-3000.0,0.00046739,120]
[418950689,1774626103714,-3000.0,0.00046739,120]
[418950690,1774626103740,-3000.0,0.00046739,120]
[418950691,1774626103767,-3000.0,0.00046739,120]
[418950692,1774626103793,-3000.0,0.00046739,120]
[418950693,1774626103819,-3000.0,0.00046739,120]
[418950694,1774626103846,-3000.0,0.00046739,120]
[418950695,1774626103872,-3000.0,0.00046739,120]
[418950696,1774626103900,-3000.0,0.00046739,120]
[418950697,1774626103926,-3000.0,0.00046739,120]
[418950698,1774626103952,-1000.0,0.00046739,30]
[418950699,1774626103978,-1000.0,0.00046739,60]
[418950700,1774626104003,-1000.0,0.00046739,90]
[418950701,1774626104028,-3000.0,0.00046739,120]
[418950702,1774626104053,-3000.0,0.00046739,120]
[418950703,1774626104077,-3000.0,0.00046739,120]
[418950704,1774626104102,-2000.0,0.00046739,120]
[418950705,1774626104126,-2000.0,0.00046739,120]
[418950706,1774626104151,-2000.0,0.00046739,120]
[418950707,1774626104175,-2000.0,0.00046739,120]
[418950708,1774626104199,-2000.0,0.00046739,120]
[418950709,1774626104224,-3000.0,0.00046739,120]
[418950710,1774626104248,-3000.0,0.00046739,120]
[418950711,1774626104273,-3000.0,0.00046739,120]
[418950712,1774626104298,-3000.0,0.00046739,120]
[418950713,1774626104323,-3000.0,0.00046739,120]
[418950714,1774626104347,-3000.0,0.00046739,120]
[418950715,1774626104371,-3000.0,0.00046739,120]
[418950716,1774626104396,-3000.0,0.00046739,120]
[418950717,1774626104583,-3000.0,0.00046739,120]
[418950718,1774626104609,-3000.0,0.00046739,120]
[418950719,1774626104633,-3000.0,0.00046739,120]
[418950720,1774626104658,-3000.0,0.00046739,120]
[418950721,1774626104683,-3000.0,0.00046739,120]
[418950722,1774626104707,-3000.0,0.00046739,120]
[418950723,1774626104732,-3000.0,0.00046739,120]
[418950724,1774626104757,-3000.0,0.00046739,120]
[418950725,1774626104780,-3000.0,0.00046739,120]
[418950726,1774626104804,-3000.0,0.00046739,120]
[418950727,1774626104828,-3000.0,0.00046739,120]
[418950728,1774626104852,-2000.0,0.00046739,120]
[418950729,1774626104877,-8662.19607178,0.00046739,120]
[418950730,1774626104900,-589266.14857067,0.00046739,30]
[418950731,1774626104924,-809.5686443,0.00046739,120]
[418950732,1774626104953,-50000.0,0.00046739,46]
[418950733,1774626104982,-50000.0,0.00046739,47]
[418950734,1774626105010,-50000.0,0.00046739,48]
[418950735,1774626105037,-49000.0,0.00046739,49]
[418950736,1774626105061,-2393.81832433,0.00046739,120]
[418950737,1774626105087,-1786.12472971,0.00046739,120]
[418950738,1774626105112,-482.727691,0.00046739,120]
[418950739,1774626105138,-1849047.27,0.00046739,120]
[418950740,1774626105163,-19994.80000002,0.00046739,30]
[418950741,1774626105187,-1154.0,0.00046739,120]
[418950742,1774626105212,-5597.0,0.00046739,30]
[418950743,1774626105237,-1000.0,0.00046739,30]
[418950744,1774626105261,-25127.0,0.00046739,120]
[418950745,1774626105286,-24054.22626723,0.00046739,30]
[418950746,1774626105311,-323.63350459,0.00046739,30]
[418950747,1774626105339,-50000.0,0.00046739,50]
[418950748,1774626105362,-10289.0136228,0.00046739,120]
[418950749,1774626105387,-2848.24352841,0.00046739,120]
[418950750,1774626105411,-202.6808433,0.00046739,120]
[418950751,1774626105436,-50000.0,0.00046739,75]
[418950752,1774626105461,-304.0,0.00046739,30]
[418950753,1774626105485,-300.44081994,0.00046739,120]
[418950754,1774626105509,-9182.33298328,0.00046739,60]
[418950755,1774626105533,-6852.24220395,0.00046739,120]
[418950756,1774626105558,-30390.47062186,0.00046739,61]
[418950757,1774626105582,-6962.52836868,0.00046739,60]
[418950758,1774626105607,-66932.34833578,0.00046739,60]
[418950759,1774626105632,-53290.77546842,0.00046739,60]
[418950760,1774626105656,-1330756.42462043,0.00046739,60]
[418950761,1774626105681,-19397.75099132,0.00046739,30]
[418950762,1774626105707,-236.03284851,0.00046739,120]
[418950763,1774626105733,-197.41639686,0.00046739,35]
[418950764,1774626105757,-1000000.0,0.00046739,90]
[418950765,1774626105781,-161.9676,0.00046739,30]
[418950766,1774626105809,-50000.0,0.00046739,51]
[418950767,1774626105836,-50000.0,0.00046739,52]
[418950768,1774626105864,-50000.0,0.00046739,53]
[418950769,1774626105894,-50000.0,0.00046739,54]
[418950770,1774626105918,-12000.0,0.00046739,120]
[418950771,1774626105943,-33580.1195969,0.00046739,120]
[418950772,1774626105967,-4473.48570468,0.00046739,120]
[418950773,1774626105990,-17662.34734079,0.00046739,30]
[418950774,1774626106016,-11996.999989,0.00046739,30]
[418950775,1774626106042,-408569.45569641,0.00046739,30]
[418950776,1774626106067,-38661.16664858,0.00046739,30]
[418950777,1774626106093,-4423.37088566,0.00046739,30]
[418950778,1774626106120,-74328.18961888,0.00046739,30]
[418950779,1774626106144,-4352.35779889,0.00046739,30]
[418950780,1774626106168,-7955.70467146,0.00046739,30]
[418950781,1774626106192,-1440853.07304173,0.00046739,30]
[418950782,1774626106216,-971491.06995334,0.00046739,30]
[418950783,1774626110326,-9000000.0,0.00046739,30]
[418950784,1774626114563,-7802817.16344141,0.00046739,30]
[418950785,1774626114588,-1001272.42715741,0.00046739,30]
[418950786,1774626114612,-195910.40940118,0.00046739,30]
[418950787,1774626118393,-4980615.88922325,0.00046739,30]
[418950788,1774626118568,-52389.48601767,0.00046739,30]
[418950789,1774626118594,-99403.94472731,0.00046739,60]
[418950790,1774626118619,-2000.0,0.00046739,31]
[418950791,1774626118647,-2000.0,0.00046739,120]
[418950792,1774626118675,-2000.0,0.00046739,120]
[418950793,1774626118701,-2000.0,0.00046739,120]
[418950794,1774626118727,-1000.0,0.00046739,120]
[418950795,1774626118752,-1000.0,0.00046739,120]
[418950796,1774626118778,-1000.0,0.00046739,120]
[418950797,1774626118802,-1000.0,0.00046739,120]
[418950798,1774626118827,-1000.0,0.00046739,120]
[418950799,1774626118851,-1000.0,0.00046739,120]
[418950800,1774626118878,-1000.0,0.00046739,120]
[418950801,1774626118905,-916.0,0.00046739,120]
[418950802,1774626118931,-237454.02942811,0.00046739,30]
[418950803,1774626118957,-3607.81603715,0.00046739,30]
[418950804,1774626118984,-27537.7516556,0.00046739,30]
[418950805,1774626119010,-3583075.08291091,0.00046739,30]
[418950810,1774626430095,-449.70385724,0.000161,7]
[418950812,1774626546131,-137.29614276,0.000161,7]
[418950813,1774626546152,-148.12606982,0.00016111,2]
[418950822,1774626636403,-404.0,0.00016111,2]
[418950823,1774626636412,-160.0,0.00028544,2]
[418950824,1774626636422,-492.60187393,0.0003,7]
[418950825,1774626636432,-492.60187393,0.0003,7]
[418950826,1774626636441,-167.77,0.00032095,2]
[418950827,1774626636451,-173.20926422,0.00034078,2]
[418950828,1774626636460,-155.16470665,0.00034795,2]
[418950829,1774626636471,-1344.83529335,0.00034795,2]
[418950830,1774626636481,-324.14039042,0.00035618,2]
[418950831,1774626636492,-2766.99745697,0.00035618,2]
[418950832,1774626636504,-2919.86215261,0.00035618,2]
[418950833,1774626636513,-2467.0,0.00035618,2]
[418950834,1774626636523,-150.0,0.00038356,2]
[418950835,1774626636532,-200.0,0.00038356,2]
[418950836,1774626636542,-6011.0,0.00038618,2]
[418950837,1774626636552,-20.87771158,0.00038618,2]
[418950838,1774626636575,-289.88510599,0.00038618,2]
[418950839,1774626636652,-781.95418243,0.00038618,2]
[418950840,1774626636661,-625.05307491,0.0003959,14]
[418950841,1774626636672,-145.17692509,0.0003959,14]
[418950842,1774626636681,-130.30212295,0.0003959,14]
[418950843,1774626636693,-929.25787705,0.0003959,14]
[418950844,1774626636702,-168.81,0.00039734,2]
[418950845,1774626636711,-300.0,0.00039756,2]
[418950846,1774626636720,-2000.0,0.0004,2]
[418950847,1774626636728,-150.0,0.0004,3]
[418950848,1774626636738,-5000.0,0.0004,7]
[418950849,1774626636748,-150.0,0.00040119,2]
[418950850,1774626636757,-1000.0,0.00040219,120]
[418950851,1774626636767,-300.0,0.00040499,5]
[418950852,1774626636776,-100.03704448,0.000405,2]
[418950853,1774626636788,-4164.96295552,0.000405,2]
[418950854,1774626636797,-842.366,0.000405,58]
[418950855,1774626636806,-2772.14089494,0.000405,15]
[418950856,1774626636818,-2622.89306983,0.000405,15]
[418950857,1774626636829,-2155.88949691,0.000405,15]
[418950858,1774626636840,-1015.04698736,0.000405,15]
[418950860,1774626636852,-1546.46476647,0.000405,15]
[418950863,1774626636863,-760.16614152,0.000405,15]
[418950869,1774626637796,-500.0,0.00035618,30]
[418950870,1774626637833,-306.0,0.00035618,30]
[418950871,1774626637842,-250.56562374,0.000405,15]
[418950872,1774626637852,-2993.67750391,0.000405,15]
[418950873,1774626637871,-500.0,0.000405,15]
[418950882,1774626639873,-532.60030199,0.000405,15]
[418950883,1774626639910,-590.0917593,0.000405,15]
[418950884,1774626639940,-7704.60033032,0.000405,15]
[418950885,1774626639950,-2500.0,0.000405,2]
[418950886,1774626639959,-501.41443417,0.00040573,2]
[418950887,1774626639969,-500.0,0.00040573,5]
[418950888,1774626639979,-506.07133091,0.00040573,5]
[418950889,1774626639988,-504.43110659,0.00040573,5]
[418950890,1774626639998,-367.95,0.0004059,10]
[418950891,1774626640007,-650.23,0.0004059,10]
[418950892,1774626640017,-541.86,0.0004059,10]
[418950893,1774626640026,-500.0,0.00040599,2]
[418950894,1774626640036,-23732.08267945,0.000406,2]
[418950895,1774626640247,-354.905,0.000406,2]
[418950896,1774626640259,-450.9,0.000406,2]
[418950897,1774626640307,-259286.31763623,0.000406,2]
[418950898,1774626640319,-342.26322073,0.000406,2]
[418950899,1774626640350,-5269.49280001,0.000406,2]
[418950911,1774626642802,-150.0,0.00024658,2]
[418950912,1774626642812,-150.0,0.0002589,2]
[418950913,1774626642821,-404.0,0.0004059,60]
[418950915,1774626642831,-53803.82946358,0.000406,2]
[418950916,1774626642840,-718.06155908,0.000406,2]
[418950917,1774626642853,-2110.73844092,0.000406,2]
[418950918,1774626642862,-2828.8,0.000406,2]
[418950919,1774626642872,-2828.8,0.000406,2]
[418950920,1774626642881,-2828.8,0.000406,2]
[418950921,1774626642891,-2828.8,0.000406,2]
[418950922,1774626642900,-2828.8,0.000406,2]
[418950923,1774626642910,-2828.8,0.000406,2]
[418950924,1774626642919,-2828.8,0.000406,2]
[418950925,1774626642928,-2828.7,0.000406,2]
[418950926,1774626642938,-2000.0,0.00040717,2]
[418950927,1774626642948,-1000.0,0.0004075,120]
[418950928,1774626642957,-1000.0,0.0004075,2]
[418950929,1774626642967,-2829.5,0.0004075,120]
[418950930,1774626642976,-1570.0,0.00040918,11]
[418950931,1774626642987,-6499.97253081,0.0004094,4]
[418950932,1774626642996,-500.0,0.00040949,2]
[418950933,1774626643006,-62466.5170113,0.0004095,60]
[418950934,1774626643021,-681.58,0.0004095,60]
[418950936,1774626645592,-150.0,0.00027185,2]
[418950937,1774626645601,-150.0,0.00028544,2]
[418950938,1774626645611,-150.0,0.00029971,2]
[418950939,1774626645620,-63217.6996924,0.0004095,60]
[418950940,1774626645738,-5997.89999997,0.0004095,60]
[418950941,1774626646088,-997.29702704,0.0004095,60]
[418950946,1774626686002,502.0,0.00013111,2]
[418950947,1774626714668,502.0,0.00013111,2]
[418950948,1774626714788,3500.0,0.00012722,2]
[418950949,1774626715305,3300.0,0.00012871,2]
[418950950,1774626715835,4300.0,0.00012859,2]
[418950951,1774626716415,3140.0,0.00012932,2]
[418950952,1774626717035,4431.86,0.00012943,2]
[418950953,1774626717559,3800.0,0.00012946,2]
[418950954,1774626718077,2091.52,0.00013051,2]
[418950955,1774626718606,2700.0,0.00013193,2]
[418950956,1774626719126,2850.0,0.00013173,2]
[418950957,1774626719647,4000.0,0.00013332,2]
[418950958,1774626720233,4500.0,0.00013413,2]
[418950959,1774626720741,2100.0,0.00013446,2]
[418950960,1774626721251,4510.0,0.00013457,2]
[418950961,1774626721763,3271.42,0.00013491,2]
[418950962,1774626722278,2034.01,0.00013648,2]
[418950963,1774626722811,4918.61,0.00013572,2]
[418950964,1774626723324,1781.57,0.00013737,2]
[418950965,1774626723951,4200.0,0.00013819,2]
[418950966,1774626724472,4820.0,0.00013849,2]
[418950967,1774626724985,3125.16,0.00013992,2]
[418950968,1774626725504,4200.0,0.00013926,2]
[418950969,1774626726014,4500.0,0.00014104,2]
[418950970,1774626726530,3690.0,0.00013991,2]
[418950971,1774626727403,2970.0,0.00014116,2]
[418950972,1774626727908,2197.55,0.00014228,2]
[418950973,1774626728430,3000.0,0.00014163,2]
[418950974,1774626728946,4450.0,0.0001428,2]
[418950975,1774626729458,1710.0,0.0001424,2]
[418950977,1774626729961,1600.0,0.00014395,2]
[418950978,1774626730483,4581.88,0.00014355,2]
[418950979,1774626731029,4280.0,0.00014634,2]
[418950980,1774626731552,3500.0,0.00014531,2]
[418950981,1774626732061,4100.0,0.00014646,2]
[418950982,1774626732839,2600.0,0.00014669,2]
[418950983,1774626733368,3800.0,0.00014851,2]
[418950984,1774626733884,1300.0,0.00014883,2]